bitfinex-derivatives/quotes_BNBF0:USTF0_20250130
["timestamp","ask_amount","ask_price","bid_price","bid_amount"]
[1738235668112,0.27096449,678.86,677.57,0.25908176]
[1738235668317,0.27096449,678.85,677.58,0.25908176]
[1738235668513,0.27096449,678.86,677.57,0.25908176]
[1738235668719,0.27096449,678.85,677.58,0.25908176]
[1738235669019,0.27096449,678.84,677.59,0.25908176]
[1738235669219,0.27096449,678.86,677.57,0.25908176]
[1738235669420,0.27096036,678.85,677.58,0.25875099]
[1738235669612,0.27096036,678.86,677.59,0.25875099]
[1738235669813,0.27096036,678.85,677.57,0.25875099]
[1738235670016,0.27096036,678.86,677.58,0.25875099]
[1738235670220,0.27096036,678.85,677.57,0.25875099]
[1738235670414,0.27096036,678.86,677.58,0.25875099]
[1738235670620,1.10395828,678.73,677.57,0.25875099]
[1738235670821,1.10395828,678.73,677.58,0.25875099]
[1738235670822,0.27096036,678.72,677.58,0.25875099]
[1738235671016,0.27096036,678.72,677.57,0.25875099]
[1738235671218,0.27096036,678.72,677.58,0.25875099]
[1738235671517,0.27096036,678.72,677.59,0.25875099]
[1738235671717,0.27096036,678.72,677.57,0.25875099]
[1738235671921,0.27096036,678.72,677.58,0.25875099]
[1738235672220,0.27096036,678.72,677.59,0.25875099]
[1738235672419,0.27096036,678.72,677.57,0.25875099]
[1738235677126,1.10395828,678.75,677.57,0.25875099]
[1738235677424,0.27096104,678.74,677.57,0.25875099]
[1738235680126,0.27096104,678.8,677.57,0.25875099]
[1738235680322,0.27096104,678.79,677.57,0.25875099]
[1738235680525,0.27096104,678.8,677.57,0.25875099]
[1738235680724,0.27096104,678.79,677.57,0.25875099]
[1738235680925,0.27096104,678.8,677.57,0.25875099]
[1738235681125,0.27096104,678.79,677.56,0.29517681]
[1738235681327,0.27096104,678.8,677.56,0.29517681]
[1738235681723,0.29464193,678.79,677.56,0.29517681]
[1738235681924,0.27096104,678.78,677.56,0.29517681]
[1738235682825,1.10395828,678.74,677.56,0.29517681]
[1738235683025,0.27096104,678.73,677.56,0.29517681]
[1738235686529,0.29464193,678.79,677.56,0.29517681]
[1738235686832,0.27099881,678.78,677.56,0.29517681]
[1738235688527,0.27099153,678.77,677.56,0.29517681]
[1738235688828,0.27099153,678.76,677.56,0.29517681]
[1738235689023,0.27099153,678.78,677.56,0.29517681]
[1738235689225,0.29464193,678.79,677.56,0.29517681]
[1738235689226,0.27099153,678.75,677.56,0.29517681]
[1738235689426,0.27099153,678.74,677.56,0.29517681]
[1738235689729,0.27099153,678.73,677.56,0.29517681]
[1738235689925,0.27099153,678.72,677.56,0.29517681]
[1738235690129,0.27099153,678.71,677.56,0.29517681]
[1738235690424,0.27099153,678.7,677.56,0.29517681]
[1738235690628,0.29464193,678.79,677.56,0.29517681]
[1738235690629,0.27099153,678.78,677.56,0.29517681]
[1738235690828,1.39860021,678.79,677.56,0.29517681]
[1738235691023,0.27099631,678.78,677.56,0.29517681]
[1738235695732,0.29465061,678.77,677.56,0.29517681]
[1738235701327,0.27105824,678.76,677.56,0.29517681]
[1738235701527,0.2946593,678.75,676.54,1.10282465]
[1738235701727,0.27105824,678.74,676.55,0.25915198]
[1738235702430,0.27105824,678.74,676.65,0.29557378]
[1738235702633,0.29466798,678.73,676.66,0.25915198]
[1738235702928,0.27105824,678.72,676.66,0.25915198]
[1738235703334,0.29467666,678.71,676.76,0.29552574]
[1738235703532,0.27105824,678.7,676.77,0.25915198]
[1738235703733,0.27105824,678.7,676.79,0.29551264]
[1738235703928,0.29468534,678.69,676.8,0.25915198]
[1738235704130,0.27105824,678.68,676.82,0.29549954]
[1738235704328,0.27105824,678.68,676.83,0.25915198]
[1738235704629,0.27105824,678.68,676.85,0.29548644]
[1738235704826,0.27105824,678.68,676.86,0.25915198]
[1738235705432,0.27105824,678.68,676.88,0.29547334]
[1738235705626,0.27105824,678.68,676.89,0.25915198]
[1738235705828,0.27105824,678.68,676.91,0.29546025]
[1738235706134,0.27105824,678.68,676.92,0.25915198]
[1738235706433,0.29468534,678.69,676.92,0.25915198]
[1738235707632,0.29468534,678.69,676.94,0.29544715]
[1738235707827,0.29468534,678.69,676.95,0.25909475]
[1738235708335,0.29468534,678.69,676.97,0.29543406]
[1738235708533,0.29468534,678.69,676.98,0.25909475]
[1738235708734,0.29468534,678.69,677.0,0.29542097]
[1738235708935,0.29468534,678.69,677.01,0.25909475]
[1738235709234,0.29468534,678.69,677.03,0.29540788]
[1738235709434,0.29468534,678.69,677.04,0.25909475]
[1738235709734,0.29468534,678.69,677.06,0.29539479]
[1738235709934,0.29468534,678.69,677.07,0.25909596]
[1738235710235,0.29468534,678.69,677.09,0.2953817]
[1738235710433,0.29468534,678.69,677.1,0.25909596]
[1738235710733,0.29468534,678.69,677.12,0.29536862]
[1738235710934,0.29468534,678.69,677.13,0.25909596]
[1738235711135,0.29468534,678.69,677.15,0.29535553]
[1738235711435,0.29468534,678.69,677.16,0.25909596]
[1738235711734,0.29468534,678.69,677.18,0.29534244]
[1738235711936,0.29468534,678.69,677.19,0.25909596]
[1738235712237,0.29468534,678.69,677.2,0.29533372]
[1738235712437,0.29468534,678.69,677.21,0.25909596]
[1738235712637,0.29468534,678.69,677.22,0.295325]
[1738235712830,0.29468534,678.69,677.23,0.25909596]
[1738235713031,0.29468534,678.69,677.24,0.29531628]
[1738235713335,0.29468534,678.69,677.25,0.25909453]
[1738235713535,0.29468534,678.69,677.26,0.29530756]
[1738235713732,0.29468534,678.69,677.27,0.25909453]
[1738235714036,0.29468534,678.69,677.28,0.29529884]
[1738235714238,0.29468534,678.69,677.29,0.25909453]
[1738235714639,0.29468534,678.69,677.3,0.29529012]
[1738235714938,0.29468534,678.69,677.31,0.25909453]
[1738235715240,0.29468534,678.69,677.32,0.2952814]
[1738235715439,0.29468534,678.69,677.33,0.25909453]
[1738235715940,0.29468534,678.69,677.34,0.29527268]
[1738235716334,0.27102158,678.68,677.35,0.25909216]
[1738235717234,0.27102158,678.68,677.36,0.29526396]
[1738235717437,0.27102158,678.68,677.37,0.25909216]
[1738235717636,0.27102158,678.68,677.38,0.29525524]
[1738235717836,0.27102158,678.68,677.39,0.25909216]
[1738235721639,0.29468534,678.69,677.38,0.29525524]
[1738235721840,0.2710147,678.68,677.39,0.25908533]
[1738235722339,0.29468534,678.69,677.38,0.29525524]
[1738235722541,0.29468534,678.69,677.39,0.25905225]
[1738235723546,0.29468534,678.69,677.4,0.29524653]
[1738235723740,0.29468534,678.69,677.41,0.25905225]
[1738235723943,0.29468534,678.69,677.42,0.29523781]
[1738235724345,0.29468534,678.69,677.43,0.2590447]
[1738235724545,0.29468534,678.69,677.44,0.29522909]
[1738235732147,0.29468534,678.69,677.45,0.25903622]
[1738235733247,0.29468534,678.69,677.46,0.29522038]
[1738235733653,0.29468534,678.69,677.47,0.25904928]
[1738235733951,0.29468534,678.69,677.48,0.29521166]
[1738235734149,0.29468534,678.69,677.49,0.25904928]
[1738235734354,0.29468534,678.69,677.48,0.29521166]
[1738235749262,0.27100602,678.68,677.49,0.25907671]
[1738235750557,0.27100172,678.67,677.5,0.25907246]
[1738235750766,0.27100172,678.68,677.49,0.25907246]
[1738235751064,0.27100172,678.67,677.5,0.25907246]
[1738235751365,0.27100172,678.66,677.51,0.25907246]
[1738235751566,0.27100172,678.65,677.52,0.25907246]
[1738235751866,0.27100172,678.64,677.48,0.29521166]
[1738235752066,0.27100172,678.68,677.49,0.25908547]
[1738235752360,0.2710093,678.67,677.5,0.25908]
[1738235752664,0.2710093,678.66,677.51,0.25908]
[1738235752863,0.2710093,678.65,677.48,0.29521166]
[1738235753063,0.2710093,678.64,677.49,0.25908252]
[1738235753258,0.2710093,678.63,677.49,0.25908252]
[1738235753459,0.2710093,678.68,677.49,0.25908252]
[1738235753666,0.2710093,678.67,677.49,0.25908252]
[1738235753860,0.2710093,678.68,677.49,0.25908252]
[1738235754065,0.2710093,678.67,677.49,0.25908252]
[1738235754264,0.2710093,678.66,677.49,0.25908252]
[1738235754566,0.2710093,678.65,677.49,0.25908252]
[1738235754762,0.2710093,678.68,677.49,0.25908252]
[1738235755066,0.2710093,678.67,677.49,0.25908252]
[1738235755266,0.2710093,678.68,677.49,0.25908252]
[1738235755466,0.29468534,678.69,677.48,0.29521166]
[1738235755768,0.27101176,678.68,677.49,0.25908239]
[1738235757367,0.27101573,678.67,677.5,0.25908635]
[1738235757567,0.27101573,678.66,677.51,0.25908635]
[1738235757768,0.27101573,678.68,677.49,0.25908635]
[1738235757960,0.27101573,678.67,677.5,0.25908635]
[1738235758165,0.27101573,678.68,677.49,0.25908635]
[1738235758365,0.27101573,678.67,677.5,0.25908635]
[1738235758561,0.27101573,678.68,677.49,0.25908635]
[1738235760663,0.27099364,678.67,677.5,0.25906443]
[1738235760868,0.27099364,678.68,677.49,0.25906443]
[1738235762275,0.27099364,678.68,677.56,1.10458296]
[1738235762575,0.27099364,678.68,677.57,0.25906443]
[1738235766874,0.29468534,678.69,677.56,1.10458296]
[1738235767075,0.2709829,678.68,677.57,0.25905378]
[1738235770380,0.29468534,678.69,677.56,1.10458296]
[1738235770580,0.27098171,678.68,677.57,0.25905262]
[1738235771875,0.27098171,678.68,677.61,1.10458296]
[1738235772077,0.29468534,678.69,677.61,1.10458296]
[1738235772280,0.27098353,678.68,677.62,0.25905446]
[1738235775279,0.27098353,678.68,677.63,0.25905446]
[1738235775482,0.27098353,678.68,677.64,0.25905446]
[1738235775683,0.27098353,678.68,677.59,1.10458296]
[1738235775684,0.27098353,678.68,677.6,0.25905446]
[1738235775885,0.27098353,678.68,677.61,0.25905446]
[1738235776086,0.27098353,678.68,677.6,0.25905446]
[1738235778089,0.27098353,678.68,677.6,1.36363742]
[1738235778282,0.27098353,678.68,677.61,0.25905446]
[1738235778480,0.29468534,678.69,677.6,1.10458296]
[1738235780688,0.29468534,678.69,677.61,0.29515503]
[1738235780989,0.29468534,678.69,677.62,0.25900518]
[1738235781188,0.29468534,678.69,677.63,0.29514631]
[1738235781390,0.29468534,678.69,677.64,0.25900518]
[1738235782284,0.29468534,678.69,677.63,0.29514631]
[1738235782489,0.29468534,678.69,677.64,0.25900321]
[1738235783988,0.29468534,678.69,677.63,0.29514631]
[1738235784194,0.29468534,678.69,677.64,0.25899675]
[1738235785694,0.29468534,678.69,677.63,0.29514631]
[1738235785894,0.29468534,678.69,677.64,0.25898968]
[1738235787387,0.29468534,678.69,677.63,0.29514631]
[1738235787593,0.29468534,678.69,677.64,0.25899519]
[1738235788994,0.29468534,678.69,677.63,0.29514631]
[1738235789193,0.29468534,678.69,677.64,0.2589943]
[1738235790490,1.10208287,678.85,677.64,0.2589943]
[1738235790695,1.10208287,678.85,677.65,0.2951376]
[1738235790888,0.27091525,678.84,677.65,0.55412418]
[1738235791094,0.27091525,678.84,677.66,0.25898658]
[1738235791295,0.27091525,678.84,677.67,0.29512889]
[1738235791495,0.27091525,678.84,677.68,0.25898658]
[1738235791693,0.27091525,678.84,677.69,0.29512018]
[1738235791898,0.27091525,678.84,677.7,0.25898658]
[1738235792497,1.10208287,678.85,677.69,0.29512018]
[1738235792697,0.27092255,678.84,677.7,0.25899382]
[1738235794898,1.10208287,678.81,677.7,0.25899382]
[1738235795100,0.27092255,678.8,677.7,0.25899382]
[1738235798103,1.10208287,678.78,677.7,0.25899382]
[1738235798400,0.27092255,678.77,677.7,0.25899382]
[1738235799501,0.27092255,678.76,677.7,0.25899382]
[1738235799801,0.27092255,678.75,677.7,0.25899382]
[1738235799998,0.27092255,678.74,677.7,0.25899382]
[1738235800199,2.966454,680.36,677.7,0.25899382]
[1738235800396,0.29401819,680.23,677.7,0.25899382]
[1738235800702,0.83643245,680.22,677.7,0.25899382]
[1738235800902,0.83654171,680.21,677.71,0.25897642]
[1738235801097,0.83654171,680.2,677.72,0.25897642]
[1738235801402,0.29401819,680.23,677.73,0.25897642]
[1738235801403,1.10206374,678.77,677.73,0.25897642]
[1738235801602,1.10206374,678.77,677.7,0.25897642]
[1738235801799,1.10206374,678.77,677.71,0.25897642]
[1738235802102,1.10206374,678.77,677.72,0.25897642]
[1738235802304,1.10206374,678.77,677.69,0.29512018]
[1738235802305,1.10206374,678.77,677.7,0.25897642]
[1738235802504,1.10206374,678.77,677.69,0.29512018]
[1738235802703,1.10206374,678.77,677.7,0.25897504]
[1738235804507,1.10206374,678.89,677.7,0.25897504]
[1738235805204,1.10206374,678.89,677.7,0.55409087]
[1738235805504,1.10206374,678.89,677.71,0.25897504]
[1738235805900,1.10206374,678.89,677.72,0.25895291]
[1738235806104,1.10206374,678.89,677.71,0.25895291]
[1738235806303,1.10206374,678.89,677.72,0.55406003]
[1738235806504,1.10206374,678.89,677.73,0.55405567]
[1738235806705,1.10206374,678.89,677.74,0.55405132]
[1738235806905,1.10206374,678.89,677.75,0.55404697]
[1738235807105,1.10206374,678.89,677.76,0.25895291]
[1738235807406,1.32247649,679.4,677.76,0.25895291]
[1738235807407,1.10206374,678.94,677.76,0.25895291]
[1738235807606,1.10206374,678.94,677.77,0.29508535]
[1738235807799,1.10206374,678.94,677.78,0.25895291]
[1738235808199,1.10206374,678.94,677.78,0.5540339]
[1738235808404,1.10206374,678.94,677.79,0.25895291]
[1738235809006,1.10206374,678.94,677.78,0.29508099]
[1738235809808,1.10206374,678.94,677.79,0.25890204]
[1738235810010,1.10206374,678.96,677.79,0.25890204]
[1738235810308,0.27086988,678.93,677.79,0.25890204]
[1738235810500,0.27086988,678.95,677.79,0.25890204]
[1738235810707,0.27086988,678.94,677.79,0.25890204]
[1738235810904,0.27086988,678.95,677.79,0.25890204]
[1738235811106,0.2708712,678.94,677.8,0.25890905]
[1738235811310,0.2708712,678.93,677.81,0.25890905]
[1738235811505,0.2708712,678.95,677.79,0.25890905]
[1738235811705,0.2708712,678.94,677.8,0.25890905]
[1738235812009,0.2708712,678.93,677.81,0.25890905]
[1738235812211,0.2708712,678.95,677.79,0.25890905]
[1738235812409,0.2708712,678.94,677.8,0.25890905]
[1738235812611,1.10206374,678.96,677.78,0.29508099]
[1738235812913,0.27087055,678.95,677.79,0.2588771]
[1738235813116,1.10206374,678.92,677.79,0.2588771]
[1738235813413,0.27087055,678.91,677.79,0.2588771]
[1738235815914,1.10206374,678.92,677.78,0.29508099]
[1738235816109,0.27087466,678.91,677.79,0.25889402]
[1738235817417,1.10206374,678.88,677.82,1.10224776]
[1738235817716,0.27087466,678.87,677.83,0.25889402]
[1738235820515,1.10206374,678.85,677.84,1.10224776]
[1738235820718,1.10206374,678.85,677.85,0.25889402]
[1738235822222,1.10206374,678.85,677.84,1.10224776]
[1738235822522,0.27088307,678.84,677.85,0.25892474]
[1738235822822,1.10206374,678.85,677.85,0.25892474]
[1738235823819,1.10206374,678.85,677.84,1.10224776]
[1738235824017,1.10206374,678.85,677.85,0.25889652]
[1738235824222,1.10206374,678.85,677.86,0.25889652]
[1738235824424,1.10206374,678.85,677.83,0.25889652]
[1738235824622,1.10206374,678.85,677.84,0.25889652]
[1738235824823,1.10206374,678.85,677.83,0.25889652]
[1738235825124,1.10206374,678.85,677.84,0.25889652]
[1738235825319,1.10206374,678.85,677.85,0.25889652]
[1738235825519,1.10206374,678.85,677.83,0.25889652]
[1738235825719,1.10206374,678.85,677.84,0.25889652]
[1738235825920,1.10206374,678.85,677.85,0.25889652]
[1738235826128,1.10206374,678.85,677.83,0.25889652]
[1738235826428,1.10206374,678.85,677.84,0.25889652]
[1738235826628,1.10206374,678.85,677.85,0.25889652]
[1738235826928,1.10206374,678.85,677.82,1.10224776]
[1738235827329,1.10206374,678.89,677.78,0.29508099]
[1738235827627,0.27090984,678.88,677.78,0.29508099]
[1738235830825,1.10206374,678.83,677.78,0.29508099]
[1738235834030,1.10206374,678.9,677.78,0.29508099]
[1738235836034,1.10206374,678.91,677.78,0.29508099]
[1738235840831,0.27092285,678.9,677.78,0.29508099]
[1738235842735,1.10206374,678.91,677.78,0.29508099]
[1738235844230,0.27090079,678.9,677.79,0.2589722]
[1738235844436,1.10206374,678.89,677.79,0.2589722]
[1738235844631,0.27090079,678.88,677.79,0.2589722]
[1738235845736,0.27090079,678.88,677.78,0.29508099]
[1738235846337,0.27090079,678.88,677.79,0.25897375]
[1738235846839,0.27090366,678.87,677.78,0.29508099]
[1738235847139,1.10206374,678.89,677.78,0.29508099]
[1738235847340,0.27090508,678.88,677.78,0.29508099]
[1738235847742,1.10206374,678.86,677.78,0.29508099]
[1738235848538,1.10206374,678.86,677.79,0.25897528]
[1738235848740,1.10206374,678.86,677.78,0.29508099]
[1738235848940,1.10206374,678.86,677.79,0.25897528]
[1738235850742,1.10206374,678.86,677.78,0.29508099]
[1738235851444,1.10206374,678.83,677.78,0.29508099]
[1738235854542,1.10206374,679.05,677.78,0.29508099]
[1738235854543,1.10206374,678.82,677.78,0.29508099]
[1738235857450,1.10206374,678.87,677.78,0.29508099]
[1738235860548,1.10206374,678.88,677.78,0.29508099]
[1738235863144,1.10206374,678.85,677.78,0.29508099]
[1738235864548,1.10206374,678.85,677.79,0.25890003]
[1738235866351,1.10206374,678.9,677.79,0.25890003]
[1738235866751,1.10206374,678.9,677.8,0.25891419]
[1738235867051,1.10206374,678.9,677.78,0.29508099]
[1738235867251,1.10206374,678.9,677.79,0.25890606]
[1738235869454,1.10206374,678.91,677.79,0.25890606]
[1738235871758,1.10206374,678.91,677.8,0.25888013]
[1738235871951,1.10206374,678.91,677.79,0.25888013]
[1738235872154,1.10206374,678.91,677.8,0.25888013]
[1738235872355,1.10206374,678.91,677.79,0.25888013]
[1738235872556,1.10206374,678.91,677.8,0.25888013]
[1738235872857,1.10206374,678.87,677.82,1.10224776]
[1738235873052,1.10206374,678.87,677.83,0.25888013]
[1738235875259,0.29452912,679.05,677.83,0.25888013]
[1738235875260,1.10206374,678.86,677.83,0.25888013]
[1738235876661,1.10206374,678.86,677.82,1.10224776]
[1738235876860,1.10206374,678.86,677.83,0.25887024]
[1738235878062,1.10206374,678.86,677.82,1.10224776]
[1738235878257,1.10206374,678.86,677.83,0.25887524]
[1738235878462,1.10206374,678.86,677.84,0.25887524]
[1738235878662,1.10206374,678.86,677.83,0.25887524]
[1738235878861,1.10206374,678.86,677.84,0.25887524]
[1738235879163,1.10206374,678.88,677.85,0.25887524]
[1738235879465,1.10206374,678.88,677.86,0.25887524]
[1738235879762,0.27086791,678.87,677.87,0.25887524]
[1738235879962,0.27086791,678.87,677.83,0.25887524]
[1738235880262,1.10206374,678.88,677.84,0.25887524]
[1738235880463,1.10206374,678.88,677.83,0.25887524]
[1738235880661,1.10206374,678.88,677.84,0.25887524]
[1738235880861,1.10206374,678.88,677.83,0.25887524]
[1738235881055,1.10206374,678.88,677.84,0.25887524]
[1738235881255,1.10206374,678.88,677.85,0.25887524]
[1738235881460,1.10206374,678.88,677.86,0.25887524]
[1738235881659,1.10206374,678.88,677.83,0.25887524]
[1738235881860,1.10206374,678.88,677.84,0.25887524]
[1738235882063,1.10206374,678.85,677.83,0.25887524]
[1738235882362,1.10206374,678.85,677.85,1.10224776]
[1738235882563,1.10206374,678.85,677.86,0.25887524]
[1738235883565,1.10206374,678.85,677.85,1.10224776]
[1738235885566,1.39659286,679.05,677.78,0.29508099]
[1738235885567,1.10206374,678.84,677.84,1.10224776]
[1738235888768,1.10206374,678.82,677.78,0.29508099]
[1738235891867,1.10206374,678.88,677.78,0.29508099]
[1738235892668,0.27094477,678.87,677.78,0.29508099]
[1738235892865,0.27094364,678.86,677.78,0.29508099]
[1738235893066,0.27094364,678.85,677.78,0.29508099]
[1738235893270,0.27094364,678.84,677.78,0.29508099]
[1738235893572,1.10206374,678.88,677.78,0.29508099]
[1738235893772,0.27094504,678.87,677.78,0.29508099]
[1738235895172,1.10206374,678.84,677.78,0.29508099]
[1738235895872,0.27094833,678.83,677.78,0.29508099]
[1738235896073,1.10206374,678.84,677.78,0.29508099]
[1738235896272,0.27094774,678.83,677.78,0.29508099]
[1738235897772,1.10206374,678.84,677.78,0.29508099]
[1738235897968,0.27096054,678.83,677.78,0.29508099]
[1738235898167,0.27096054,678.84,677.78,0.29508099]
[1738235901976,1.10206374,678.79,677.78,0.29508099]
[1738235902167,0.27096054,678.78,677.78,0.29508099]
[1738235902684,1.10206374,678.79,677.78,0.29508099]
[1738235902870,0.27094868,678.78,677.78,0.29508099]
[1738235905074,0.27094868,678.85,677.78,0.29508099]
[1738235906079,0.2709516,678.84,677.78,0.29508099]
[1738235906279,0.2709516,678.83,677.78,0.29508099]
[1738235906480,0.2709516,678.82,677.78,0.29508099]
[1738235906780,0.2709516,678.81,677.78,0.29508099]
[1738235906981,0.2709516,678.8,677.78,0.29508099]
[1738235907175,0.2709516,678.79,677.78,0.29508099]
[1738235907374,0.2709516,678.78,677.78,0.29508099]
[1738235907680,0.2709516,678.77,677.78,0.29508099]
[1738235907876,0.2709516,678.84,677.78,0.29508099]
[1738235908076,1.10206374,678.85,677.78,0.29508099]
[1738235908381,0.27094374,678.84,677.78,0.29508099]
[1738235911174,1.10206374,678.81,677.78,0.29508099]
[1738235911378,0.27094374,678.8,677.78,0.29508099]
[1738235915685,1.10206374,678.71,677.78,0.29508099]
[1738235916681,0.2709543,678.7,677.78,0.29508099]
[1738235917778,1.10206374,678.71,677.78,0.29508099]
[1738235919387,1.37304261,678.7,677.78,0.29508099]
[1738235919587,0.27097643,678.69,677.78,0.29508099]
[1738235921088,1.10206374,678.7,677.78,0.29508099]
[1738235921287,0.27098091,678.69,677.78,0.29508099]
[1738235921486,1.10206374,678.7,677.78,0.29508099]
[1738235921689,0.27097858,678.69,677.78,0.29508099]
[1738235921987,0.27097858,678.69,677.56,1.10224776]
[1738235921988,1.10206374,678.7,677.56,1.10224776]
[1738235922190,1.10206374,678.7,677.57,0.25904582]
[1738235922386,1.10206374,678.62,677.55,1.10224776]
[1738235922585,1.10206374,678.62,677.56,0.25906145]
[1738235922788,1.10206374,678.62,677.57,0.25906279]
[1738235922990,1.10206374,678.62,677.58,0.25906279]
[1738235923190,1.10206374,678.62,677.56,0.25906279]
[1738235923388,1.10206374,678.62,677.57,0.25906279]
[1738235923591,1.10206374,678.62,677.56,0.25906279]
[1738235923789,1.10206374,678.62,677.57,0.25906279]
[1738235923989,1.10206374,678.62,677.56,0.25906279]
[1738235924193,1.10206374,678.62,677.57,0.25906279]
[1738235924393,1.10206374,678.62,677.56,0.25906279]
[1738235924596,1.10206374,678.62,677.57,0.25906279]
[1738235924893,1.10206374,678.62,677.58,0.25906279]
[1738235925192,1.10206374,678.62,677.59,0.25906279]
[1738235925393,1.10206374,678.62,677.56,0.25906279]
[1738235925594,1.10206374,678.62,677.57,0.25906279]
[1738235925789,1.10206374,678.62,677.56,0.25906279]
[1738235925990,1.10206374,678.62,677.55,1.10224776]
[1738235926193,1.10206374,678.56,677.56,0.25905124]
[1738235926396,1.10206374,678.56,677.55,0.25905124]
[1738235926590,1.10206374,678.56,677.56,0.25905124]
[1738235926795,1.10206374,678.56,677.55,0.25905124]
[1738235926995,1.10206374,678.56,677.56,0.25905124]
[1738235927199,1.10206374,678.56,677.55,0.25905124]
[1738235927499,1.10206374,678.56,677.56,0.25905124]
[1738235927797,1.10206374,678.56,677.57,0.25902221]
[1738235927998,1.10206374,678.56,677.58,0.25902221]
[1738235928200,1.10206374,678.56,677.59,0.25902221]
[1738235928396,1.10206374,678.56,677.55,0.25902221]
[1738235928700,1.10206374,678.56,677.56,0.25902221]
[1738235928998,1.10206374,678.56,677.54,1.10224776]
[1738235928999,1.10206374,678.56,677.57,0.25902221]
[1738235929194,1.10206374,678.56,677.55,0.25902221]
[1738235929396,1.10206374,678.61,677.56,1.10224776]
[1738235929597,1.10206374,678.61,677.57,0.25902221]
[1738235930597,1.10206374,678.61,677.58,0.29516809]
[1738235930797,1.10206374,678.61,677.59,0.25902221]
[1738235931592,1.10206374,678.61,677.6,0.29515938]
[1738235931799,1.10206374,678.61,677.61,0.25902221]
[1738235932299,1.10206374,678.66,677.63,1.10224776]
[1738235932498,1.10206374,678.66,677.64,0.25902221]
[1738235934501,1.10206374,678.66,677.65,0.2951376]
[1738235934699,1.10206374,678.66,677.66,0.25902221]
[1738235934899,1.10206374,678.66,677.66,0.55415546]
[1738235935099,1.10206374,678.66,677.67,0.25902221]
[1738235935998,1.10206374,678.75,677.67,1.36126997]
[1738235936204,1.10206374,678.75,677.68,0.25902221]
[1738235937797,1.10206374,678.75,677.67,1.10224776]
[1738235938003,1.10206374,678.75,677.68,0.25887775]
[1738235938301,1.10206374,678.75,677.67,1.10224776]
[1738235938601,1.10206374,678.75,677.68,0.25887492]
[1738235939013,1.10206374,678.8,677.68,0.25887492]
[1738235939205,1.10206374,678.8,677.67,0.25887492]
[1738235939402,1.10206374,678.8,677.68,0.25887492]
[1738235939603,1.10206374,678.8,677.69,0.25887275]
[1738235939903,1.10206374,678.8,677.7,0.25887275]
[1738235940104,1.10206374,678.8,677.67,0.25887275]
[1738235940309,1.10206374,678.8,677.68,0.25887275]
[1738235940497,1.10206374,678.8,677.67,0.25887275]
[1738235940805,1.10206374,678.8,677.68,0.25887275]
[1738235941103,1.10206374,678.8,677.69,0.2588839]
[1738235941301,1.10206374,678.8,677.67,0.2588839]
[1738235943309,1.10206374,678.86,677.67,0.2588839]
[1738235944003,1.10206374,678.86,677.66,0.29513325]
[1738235944204,1.10206374,678.86,677.67,0.25886853]
[1738235946112,1.10206374,678.9,677.67,0.25886853]
[1738235946409,0.27090775,678.89,677.67,0.25886853]
[1738235947410,1.10206374,678.9,677.66,0.29513325]
[1738235947604,0.27090727,678.89,677.67,0.25886596]
[1738235949312,1.10206374,678.9,677.67,0.25886596]
[1738235949511,1.10206374,678.9,677.66,0.29513325]
[1738235952012,1.10206374,679.16,677.66,0.29513325]
[1738235954417,2.25004681,680.21,677.66,0.29513325]
[1738235954418,1.10206374,679.18,677.66,0.29513325]
[1738235959313,0.27090812,679.04,677.66,0.29513325]
[1738235961311,1.10206374,679.17,677.66,0.29513325]
[1738235961514,0.27090587,679.04,677.66,0.29513325]
[1738235962220,1.10206374,678.94,677.66,0.29513325]
[1738235962421,1.10206374,678.94,677.67,0.25886184]
[1738235964313,1.10206374,678.94,677.66,0.29513325]
[1738235964821,1.10206374,678.84,677.67,1.10224776]
[1738235967725,1.10206374,678.87,677.66,0.29513325]
[1738235970626,1.10206374,678.85,677.66,1.39738101]
[1738235972628,1.10206374,678.84,677.67,1.10224776]
[1738235972927,1.10206374,678.84,677.68,0.25895878]
[1738235974328,0.27091057,678.83,677.68,0.25895878]
[1738235975830,1.10206374,678.71,677.78,1.10224776]
[1738235976228,1.10206374,678.71,677.79,0.25895534]
[1738235977733,1.10206374,678.71,677.8,0.25891069]
[1738235978032,1.10206374,678.71,677.81,0.25891069]
[1738235978232,1.10206374,678.71,677.82,0.25891069]
[1738235978427,1.10206374,678.71,677.83,0.25891069]
[1738235978627,1.10206374,678.71,677.84,0.25891069]
[1738235978831,1.10206374,678.71,677.85,0.25891069]
[1738235979027,1.10206374,678.71,677.86,0.25891069]
[1738235979334,1.10206374,678.71,677.87,0.25891069]
[1738235979528,1.10206374,678.68,677.9,1.10224776]
[1738235980427,1.10206374,678.68,677.91,0.25890876]
[1738235981233,1.10206374,678.68,677.9,1.10224776]
[1738235981432,1.10206374,678.68,677.91,0.25891212]
[1738235982635,1.10206374,678.68,677.9,1.10224776]
[1738235984134,1.10206374,678.69,677.89,1.10224776]
[1738235987337,0.76615616,679.04,677.75,1.10224776]
[1738235987338,1.10206374,678.77,677.75,1.10224776]
[1738235987537,1.10206374,678.77,677.76,0.25890336]
[1738235989838,1.10206374,678.77,677.76,1.36115112]
[1738235990035,1.10206374,678.77,677.76,1.10224776]
[1738235991034,1.10206374,678.77,677.77,0.25886915]
[1738235993033,1.10206374,678.76,677.77,1.36111691]
[1738235993339,1.10206374,678.76,677.77,1.10224776]